fUST/lending_fUST_20250621
["ID","MTS","AMOUNT","RATE_DAILY","PERIOD"]
[366848055,1750511435963,-3122.05241198,0.00022706,2]
[366848056,1750511435973,-3000.0,0.0002271,2]
[366848057,1750511435983,-151.0,0.0002271,7]
[366848058,1750511435993,-151.0,0.0002271,7]
[366848059,1750511436003,-151.0,0.0002271,7]
[366848060,1750511436012,-151.0,0.0002271,7]
[366848061,1750511436022,-1750.456,0.00022711,2]
[366848062,1750511436032,-17262.96799856,0.00022712,2]
[366848063,1750511436042,-151.0,0.00022712,7]
[366848064,1750511436052,-151.0,0.00022712,7]
[366848065,1750511436063,-151.0,0.00022712,7]
[366848066,1750511436073,-2122.0,0.00022718,2]
[366848067,1750511436083,-503.0,0.00022718,2]
[366848068,1750511436094,-160.0,0.00022719,2]
[366848069,1750511436105,-1000.0,0.00022719,2]
[366848070,1750511436115,-3000.0,0.0002272,2]
[366848071,1750511436126,-1423.13165332,0.00022728,7]
[366848072,1750511436136,-151.0,0.00022728,7]
[366848073,1750511436146,-151.0,0.00022728,7]
[366848074,1750511436155,-151.0,0.00022728,7]
[366848075,1750511436165,-151.0,0.00022728,7]
[366848076,1750511436175,-3000.0,0.0002273,2]
[366848077,1750511436185,-151.0,0.0002273,7]
[366848078,1750511436195,-652.57533,0.0002273,7]
[366848079,1750511436205,-652.57533,0.0002273,7]
[366848080,1750511436214,-151.0,0.0002273,7]
[366848081,1750511436224,-242.658321,0.0002273,7]
[366848082,1750511436233,-242.658321,0.0002273,7]
[366848083,1750511436243,-153.0,0.0002274,2]
[366848084,1750511436253,-153.0,0.0002274,2]
[366848085,1750511436264,-159.0806219,0.0002274,2]
[366848086,1750511436273,-574.5372799,0.0002274,2]
[366848087,1750511436282,-177.2671816,0.0002274,2]
[366848088,1750511436292,-177.2671816,0.0002274,2]
[366848089,1750511436302,-159.0806219,0.0002274,2]
[366848090,1750511436311,-153.0,0.0002274,2]
[366848091,1750511436321,-153.0,0.0002274,2]
[366848092,1750511436331,-574.5372799,0.0002274,2]
[366848093,1750511436340,-177.2671816,0.0002274,2]
[366848094,1750511436349,-153.0,0.0002274,2]
[366848095,1750511436358,-159.0806219,0.0002274,2]
[366848096,1750511436368,-153.0,0.0002274,2]
[366848097,1750511436378,-574.5372799,0.0002274,2]
[366848098,1750511436387,-177.2671816,0.0002274,2]
[366848099,1750511436397,-159.0806219,0.0002274,2]
[366848100,1750511436407,-574.5372799,0.0002274,2]
[366848101,1750511436416,-177.2671816,0.0002274,2]
[366848102,1750511436426,-574.5372799,0.0002274,2]
[366848103,1750511436435,-159.0806219,0.0002274,2]
[366848104,1750511436445,-153.0,0.0002274,2]
[366848105,1750511436455,-574.5372799,0.0002274,2]
[366848106,1750511436465,-159.0806219,0.0002274,2]
[366848107,1750511436474,-177.2671816,0.0002274,2]
[366848108,1750511436484,-159.0806219,0.0002274,2]
[366848109,1750511436494,-177.2671816,0.0002274,2]
[366848110,1750511436503,-574.5372799,0.0002274,2]
[366848111,1750511436514,-153.0,0.0002274,2]
[366848112,1750511436523,-159.0806219,0.0002274,2]
[366848113,1750511436533,-177.2671816,0.0002274,2]
[366848114,1750511436542,-574.5372799,0.0002274,2]
[366848115,1750511436551,-177.2671816,0.0002274,2]
[366848116,1750511436561,-153.0,0.0002274,2]
[366848117,1750511436570,-159.0806219,0.0002274,2]
[366848118,1750511436580,-574.5372799,0.0002274,2]
[366848119,1750511436589,-159.0806219,0.0002274,2]
[366848120,1750511436599,-177.2671816,0.0002274,2]
[366848121,1750511436608,-574.5372799,0.0002274,2]
[366848122,1750511436617,-352.990572,0.0002274,2]
[366848123,1750511436627,-362.1142959,0.0002274,2]
[366848124,1750511436636,-574.5372799,0.0002274,2]
[366848125,1750511436646,-574.5372799,0.0002274,2]
[366848126,1750511436656,-574.5372799,0.0002274,2]
[366848127,1750511436666,-476.9776043,0.0002274,2]
[366848128,1750511436675,-3000.0,0.0002274,2]
[366848129,1750511436684,-151.0,0.0002274,7]
[366848130,1750511436694,-151.0,0.0002274,7]
[366848131,1750511436703,-151.0,0.0002274,7]
[366848132,1750511436712,-151.0,0.0002274,7]
[366848133,1750511436722,-152.160898,0.0002274,7]
[366848134,1750511436731,-151.0,0.0002274,7]
[366848135,1750511436741,-304.484029,0.0002274,7]
[366848136,1750511436750,-304.484029,0.0002274,7]
[366848137,1750511436760,-151.0,0.0002274,7]
[366848138,1750511436770,-236.612328,0.0002274,7]
[366848139,1750511436780,-236.612328,0.0002274,7]
[366848140,1750511436790,-151.0,0.0002274,7]
[366848141,1750511436800,-151.0,0.0002274,7]
[366848142,1750511436810,-151.0,0.0002274,7]
[366848143,1750511436819,-151.0,0.0002274,7]
[366848144,1750511436828,-151.0,0.0002274,7]
[366848145,1750511436837,-652.57533,0.0002274,7]
[366848146,1750511436846,-652.57533,0.0002274,7]
[366848147,1750511436856,-151.0,0.0002274,7]
[366848148,1750511436866,-151.0,0.0002274,7]
[366848149,1750511436878,-151.0,0.0002274,7]
[366848150,1750511436961,-242.658321,0.0002274,7]
[366848151,1750511436971,-242.658321,0.0002274,7]
[366848152,1750511436980,-151.0,0.0002274,7]
[366848153,1750511436990,-502.577893,0.0002274,7]
[366848154,1750511437000,-502.577893,0.0002274,7]
[366848155,1750511437010,-151.0,0.0002274,7]
[366848156,1750511437020,-2122.0,0.00022746,2]
[366848157,1750511437031,-503.0,0.00022746,2]
[366848158,1750511437040,-1000.0,0.00022749,2]
[366848159,1750511437050,-3000.0,0.0002275,2]
[366848160,1750511437059,-151.991436,0.0002275,7]
[366848161,1750511437069,-151.0,0.0002275,7]
[366848162,1750511437079,-151.0,0.0002275,7]
[366848163,1750511437088,-3000.0,0.0002276,2]
[366848164,1750511437098,-1815.222872,0.00022766,2]
[366848165,1750511437107,-3000.0,0.0002277,2]
[366848166,1750511437117,-151.0,0.0002277,7]
[366848167,1750511437127,-158.914798,0.0002277,7]
[366848168,1750511437136,-2122.0,0.00022773,2]
[366848169,1750511437146,-503.0,0.00022773,2]
[366848170,1750511437155,-3000.0,0.0002278,2]
[366848171,1750511437164,-1000.0,0.00022789,2]
[366848172,1750511437175,-1000.0,0.00022789,2]
[366848173,1750511437185,-3000.0,0.0002279,2]
[366848174,1750511437195,-210.364631,0.0002279,7]
[366848175,1750511437205,-153.356619,0.0002279,7]
[366848176,1750511437215,-151.0,0.0002279,7]
[366848177,1750511437226,-151.0,0.0002279,7]
[366848178,1750511437235,-151.0,0.0002279,7]
[366848179,1750511437245,-151.0,0.0002279,7]
[366848180,1750511437255,-433.734376,0.0002279,7]
[366848181,1750511437265,-433.734376,0.0002279,7]
[366848182,1750511437274,-675.133848,0.0002279,7]
[366848183,1750511437285,-675.133848,0.0002279,7]
[366848184,1750511437294,-151.0,0.0002279,7]
[366848185,1750511437304,-236.612328,0.0002279,7]
[366848186,1750511437313,-236.612328,0.0002279,7]
[366848187,1750511437322,-151.0,0.0002279,7]
[366848188,1750511437331,-151.0,0.0002279,7]
[366848189,1750511437341,-151.0,0.0002279,7]
[366848190,1750511437351,-151.0,0.0002279,7]
[366848191,1750511437360,-151.0,0.0002279,7]
[366848192,1750511437370,-151.0,0.0002279,7]
[366848193,1750511437380,-151.0,0.0002279,7]
[366848194,1750511437389,-502.577893,0.0002279,7]
[366848195,1750511437398,-502.577893,0.0002279,7]
[366848196,1750511437408,-151.0,0.0002279,7]
[366848197,1750511437417,-652.57533,0.00022795,7]
[366848198,1750511437427,-652.57533,0.00022795,7]
[366848199,1750511437436,-243.705881,0.00022795,7]
[366848200,1750511437447,-242.658321,0.00022795,7]
[366848201,1750511437457,-242.658321,0.00022795,7]
[366848202,1750511437466,-754.08053878,0.000228,6]
[366848203,1750511437476,-3000.0,0.000228,2]
[366848204,1750511437487,-836.32,0.000228,7]
[366848205,1750511437501,-151.0,0.000228,7]
[366848206,1750511437511,-151.0,0.000228,7]
[366848207,1750511437520,-304.484029,0.000228,7]
[366848208,1750511437530,-304.484029,0.000228,7]
[366848209,1750511437540,-151.0,0.000228,7]
[366848210,1750511437550,-2122.0,0.000228,2]
[366848211,1750511437559,-503.0,0.000228,2]
[366848212,1750511437569,-3000.0,0.0002281,2]
[366848213,1750511437580,-402.21210669,0.00022812,2]
[366848214,1750511437590,-3000.0,0.0002282,2]
[366848215,1750511437601,-1882.38611826,0.00022821,2]
[366848216,1750511437611,-2122.0,0.00022828,2]
[366848217,1750511437621,-503.0,0.00022828,2]
[366848218,1750511437631,-151.0,0.00022828,7]
[366848219,1750511437643,-3000.0,0.0002283,2]
[366848220,1750511437654,-230.10342898,0.00022836,2]
[366848221,1750511437664,-424.93363889,0.00022836,2]
[366848222,1750511437675,-160.0,0.00022836,2]
[366848223,1750511437685,-3000.0,0.0002284,2]
[366848225,1750511437695,-151.0,0.0002284,7]
[366848226,1750511437705,-151.0,0.0002284,7]
[366848227,1750511437715,-151.0,0.0002284,7]
[366848228,1750511437726,-253.508807,0.0002284,7]
[366848229,1750511437735,-253.508807,0.0002284,7]
[366848230,1750511437744,-151.0,0.0002284,7]
[366848232,1750511437754,-151.0,0.0002284,7]
[366848233,1750511437764,-151.0,0.0002284,7]
[366848234,1750511437774,-1000.0,0.00022849,2]
[366848235,1750511437784,-3000.0,0.0002285,2]
[366848236,1750511437794,-151.0,0.0002285,7]
[366848237,1750511437803,-182.136929,0.0002285,7]
[366848238,1750511437813,-151.0,0.0002285,7]
[366848239,1750511437822,-151.0,0.0002285,7]
[366848240,1750511437831,-652.57533,0.0002285,7]
[366848241,1750511437841,-652.57533,0.0002285,7]
[366848242,1750511437851,-151.0,0.0002285,7]
[366848244,1750511437860,-242.658321,0.0002285,7]
[366848245,1750511437873,-242.658321,0.0002285,7]
[366848247,1750511437883,-151.0,0.00022851,7]
[366848249,1750511437892,-151.0,0.00022851,7]
[366848251,1750511437902,-210.364631,0.00022851,7]
[366848254,1750511437912,-210.364631,0.00022851,7]
[366848256,1750511437922,-151.0,0.00022851,7]
[366848258,1750511437931,-151.0,0.00022851,7]
[366848260,1750511437942,-151.0,0.00022851,7]
[366848262,1750511437952,-151.0,0.00022851,7]
[366848264,1750511437961,-433.734376,0.00022851,7]
[366848266,1750511437970,-433.734376,0.00022851,7]
[366848268,1750511437979,-304.484029,0.00022851,7]
[366848270,1750511437989,-304.484029,0.00022851,7]
[366848272,1750511437999,-675.133848,0.00022851,7]
[366848274,1750511438008,-675.133848,0.00022851,7]
[366848276,1750511438018,-151.0,0.00022851,7]
[366848278,1750511438028,-236.612328,0.00022851,7]
[366848280,1750511438037,-236.612328,0.00022851,7]
[366848282,1750511438047,-151.0,0.00022851,7]
[366848284,1750511438056,-502.577893,0.00022851,7]
[366848286,1750511438066,-502.577893,0.00022851,7]
[366848288,1750511438075,-151.0,0.00022851,7]
[366848290,1750511438085,-2126.47122306,0.00022855,2]
[366848292,1750511438095,-516.75624409,0.00022855,2]
[366848294,1750511438104,-1049.07429995,0.00022859,2]
[366848296,1750511438114,-3000.0,0.0002286,2]
[366848298,1750511438123,-1423.13165332,0.00022866,8]
[366848300,1750511438132,-3000.0,0.0002287,2]
[366848302,1750511438142,-561.59421932,0.00022876,2]
[366848304,1750511438152,-3000.0,0.0002288,2]
[366848306,1750511438161,-210.364631,0.0002288,7]
[366848308,1750511438171,-210.364631,0.0002288,7]
[366848310,1750511438180,-433.734376,0.0002288,7]
[366848312,1750511438190,-433.734376,0.0002288,7]
[366848314,1750511438200,-675.133848,0.0002288,7]
[366848316,1750511438209,-675.133848,0.0002288,7]
[366848318,1750511438219,-151.0,0.0002288,7]
[366848321,1750511438228,-3000.0,0.0002289,2]
[366848323,1750511438238,-151.0,0.00022899,7]
[366848325,1750511438248,-155.239085,0.00022899,7]
[366848327,1750511438258,-151.0,0.00022899,7]
[366848329,1750511438267,-3000.0,0.000229,2]
[366848331,1750511438277,-3122.05241198,0.000229,2]
[366848333,1750511438286,-652.57533,0.00022904,7]
[366848335,1750511438295,-652.57533,0.00022904,7]
[366848337,1750511438305,-242.658321,0.00022904,7]
[366848339,1750511438316,-242.658321,0.00022904,7]
[366848341,1750511438326,-151.0,0.00022904,7]
[366848343,1750511438335,-3000.0,0.0002291,2]
[366848345,1750511438345,-3000.0,0.0002292,2]
[366848347,1750511438354,-151.0,0.0002292,7]
[366848349,1750511438363,-151.0,0.0002292,7]
[366848351,1750511438372,-253.508807,0.0002292,7]
[366848353,1750511438381,-253.508807,0.0002292,7]
[366848355,1750511438391,-151.0,0.0002292,7]
[366848357,1750511438400,-151.0,0.0002292,7]
[366848359,1750511438410,-3000.0,0.0002293,2]
[366848361,1750511438419,-151.0,0.0002293,7]
[366848363,1750511438428,-151.0,0.0002293,7]
[366848365,1750511438438,-151.0,0.0002293,7]
[366848368,1750511438447,-151.0,0.0002293,7]
[366848370,1750511438456,-152.962278,0.0002293,7]
[366848371,1750511438465,-304.484029,0.0002293,7]
[366848373,1750511438475,-304.484029,0.0002293,7]
[366848376,1750511438485,-151.0,0.0002293,7]
[366848377,1750511438496,-236.612328,0.0002293,7]
[366848380,1750511438506,-236.612328,0.0002293,7]
[366848381,1750511438516,-151.0,0.0002293,7]
[366848384,1750511438525,-502.577893,0.0002293,7]
[366848386,1750511438535,-502.577893,0.0002293,7]
[366848388,1750511438544,-3000.0,0.0002294,2]
[366848390,1750511438553,-276.375317,0.0002294,7]
[366848391,1750511438563,-151.0,0.0002294,7]
[366848393,1750511438572,-151.0,0.0002294,7]
[366848396,1750511438581,-3000.0,0.0002295,2]
[366848397,1750511438590,-151.0,0.0002295,7]
[366848399,1750511438600,-232.16866,0.0002295,7]
[366848401,1750511438609,-232.16866,0.0002295,7]
[366848403,1750511438619,-151.0,0.0002295,7]
[366848406,1750511438628,-151.0,0.0002295,7]
[366848415,1750511438703,-652.57533,0.0002295,7]
[366848417,1750511438713,-652.57533,0.0002295,7]
[366848419,1750511438722,-160.0,0.0002295,7]
[366848421,1750511438732,-242.658321,0.0002295,7]
[366848423,1750511438741,-242.658321,0.0002295,7]
[366848425,1750511438750,-113186.14462921,0.00022951,2]
[366848427,1750511438760,-151.0,0.00022951,7]
[366848429,1750511438770,-151.0,0.00022951,7]
[366848431,1750511438779,-151.0,0.00022951,7]
[366848432,1750511438788,-151.0,0.00022951,7]
[366848434,1750511438797,-152.11626,0.00022951,7]
[366848436,1750511438807,-151.0,0.00022951,7]
[366848438,1750511438816,-275.27875,0.00022951,7]
[366848440,1750511438826,-500.0,0.00022951,2]
[366848442,1750511438835,-500.0,0.00022951,2]
[366848444,1750511438845,-500.0,0.00022951,2]
[366848447,1750511438854,-500.0,0.00022951,2]
[366848448,1750511438865,-500.0,0.00022951,2]
[366848451,1750511438879,-164.26806508,0.00022951,2]
[366848515,1750511439471,-500.0,0.00021985,2]
[366848517,1750511439485,-94.78239997,0.00021985,2]
[366848578,1750511440364,-489.78642268,0.00021985,2]
[366848581,1750511440379,-299.28885568,0.00021985,2]
[366848583,1750511440391,-484.3841567,0.00021985,2]
[366848585,1750511440403,-883.85767833,0.00021985,2]
[366848588,1750511440415,-500.0,0.00021985,2]
[366848590,1750511440426,-883.85767833,0.00021985,2]
[366848592,1750511440437,-883.85767833,0.00021985,2]
[366848594,1750511440449,-156.67570187,0.00021985,2]
[366848596,1750511440461,-883.85767833,0.00021985,2]
[366848598,1750511440472,-883.85767833,0.00021985,2]
[366848601,1750511440485,-883.85767833,0.00021985,2]
[366848603,1750511440496,-246.60428316,0.00021985,2]
[366848605,1750511440511,-637.25339517,0.00021985,2]
[366848607,1750511440522,-883.85767833,0.00021985,2]
[366848610,1750511440533,-883.85767833,0.00021985,2]
[366848612,1750511440544,-883.85767833,0.00021985,2]
[366848614,1750511440555,-883.85767833,0.00021985,2]
[366848616,1750511440567,-883.85767833,0.00021985,2]
[366848618,1750511440579,-841.49,0.00022941,10]
[366848621,1750511440591,-335.73193492,0.00022951,2]
[366848623,1750511440602,-500.0,0.00022951,2]
[366848625,1750511440614,-500.0,0.00022951,2]
[366848627,1750511440625,-266.0,0.00022951,2]
[366848630,1750511440637,-500.0,0.00022951,2]
[366848632,1750511440649,-500.0,0.00022951,2]
[366848634,1750511440660,-500.0,0.00022951,2]
[366848636,1750511440672,-500.0,0.00022951,2]
[366848639,1750511440684,-500.0,0.00022951,2]
[366848641,1750511440697,-599.20693371,0.00022951,2]
[366848643,1750511440707,-151.0,0.00022951,7]
[366848645,1750511440716,-151.943504,0.00022951,7]
[366848647,1750511440726,-151.0,0.00022951,7]
[366848649,1750511440735,-232.16866,0.00022951,7]
[366848651,1750511440745,-232.16866,0.00022951,7]
[366848653,1750511440755,-151.365617,0.00022951,7]
[366848655,1750511440766,-151.0,0.00022951,7]
[366848657,1750511440775,-210.364631,0.00022951,7]
[366848659,1750511440785,-65.18149807,0.00022951,7]
[366848922,1750511443302,-168.2396667,0.00021899,2]
[366848925,1750511443312,-114.01061869,0.00022951,7]
[366848930,1750511443358,-31.17251424,0.00022951,7]
[366848932,1750511443368,-151.0,0.00022951,7]
[366848934,1750511443378,-151.0,0.00022951,7]
[366848936,1750511443387,-151.0,0.00022951,7]
[366848938,1750511443396,-151.0,0.00022951,7]
[366848940,1750511443406,-253.508807,0.00022951,7]
[366848942,1750511443416,-253.508807,0.00022951,7]
[366848944,1750511443425,-426.99455701,0.00022951,7]
[366848947,1750511443437,-6.73981899,0.00022951,7]
[366848949,1750511443447,-247.71878707,0.00022951,7]
[366848951,1750511443458,-186.01558893,0.00022951,7]
[366848953,1750511443468,-150.90685869,0.00022951,7]
[366848994,1750511446216,-153.57717031,0.00022951,7]
[366848995,1750511446225,-304.484029,0.00022951,7]
[366848996,1750511446246,-151.0,0.00022951,7]
[366848997,1750511446257,-151.0,0.00022951,7]
[366848998,1750511446267,-675.133848,0.00022951,7]
[366848999,1750511446277,-675.133848,0.00022951,7]
[366849000,1750511446287,-151.0,0.00022951,7]
[366849001,1750511446297,-236.612328,0.00022951,7]
[366849002,1750511446307,-236.612328,0.00022951,7]
[366849003,1750511446317,-151.0,0.00022951,7]
[366849004,1750511446327,-652.57533,0.00022951,7]
[366849005,1750511446338,-652.575321,0.00022951,7]
[366849006,1750511446348,-242.658321,0.00022951,7]
[366849007,1750511446358,-242.658313,0.00022951,7]
[366849008,1750511446369,-502.577893,0.00022951,7]
[366849009,1750511446379,-502.577893,0.00022951,7]
[366849010,1750511446396,-3000.0,0.0002296,2]
[366849011,1750511446406,-286.00865012,0.00022967,2]
[366849012,1750511446417,-663.32134652,0.0002297,2]
[366849018,1750511446629,-1502.61142982,0.0002297,2]
[366849023,1750511780975,1067.37,0.00024658,120]
[366849024,1750511804657,1067.3678,0.00024658,120]
[366849026,1750511990762,-5000.0,0.00020642,2]
[366849027,1750511991289,-150.0,0.00020851,2]
[366849028,1750511991311,-1320.84253847,0.0002128,2]
[366849029,1750511991334,-199.86066517,0.00021396,2]
[366849030,1750511991355,-259.09536,0.0002147,2]
[366849031,1750511991380,-1128.3646743,0.00021633,2]
[366849032,1750511991499,-251.38256669,0.000217,2]
[366849033,1750511991523,-300.0,0.00021797,2]
[366849034,1750511991556,-509.46927359,0.00021798,2]
[366849035,1750511991580,-500.0,0.00021798,2]
[366849036,1750511991602,-260.8523537,0.00021798,2]
[366849037,1750511991625,-500.0,0.00021798,2]
[366849038,1750511991649,-500.0,0.00021798,2]
[366849039,1750511991673,-500.0,0.00021798,2]
[366849040,1750511991697,-500.0,0.00021798,2]
[366849041,1750511991721,-500.0,0.00021798,2]
[366849042,1750511991744,-500.0,0.00021798,2]
[366849043,1750511991766,-500.0,0.00021798,2]
[366849044,1750511991790,-202.01333181,0.00021798,2]
[366849045,1750511991813,-500.0,0.00021798,2]
[366849046,1750511991835,-568.55892438,0.00021798,2]
[366849047,1750511991857,-500.0,0.00021798,2]
[366849048,1750511991879,-500.0,0.00021798,2]
[366849049,1750511991900,-363.03106377,0.00021798,2]
[366849050,1750511991922,-500.0,0.00021798,2]
[366849051,1750511991943,-500.0,0.00021798,2]
[366849052,1750511991964,-300.0,0.00021799,2]
[366849053,1750511991985,-2788.52924812,0.000218,3]
[366849054,1750512254848,-757.0,0.00020642,2]
[366849055,1750512383417,-160.58177857,0.00019503,2]
[366849057,1750512437132,-3603.44222466,0.00019503,2]
[366849058,1750512503539,845.3324072,0.0002,30]
[366849059,1750512515077,385248.11390985,0.0002522,60]
[366849060,1750512517019,-1235.97599677,0.00019503,2]
[366849061,1750512517043,-150.0,0.000197,2]
[366849062,1750512517065,-152.70732847,0.00020648,2]
[366849063,1750512517088,-500.0,0.00020648,2]
[366849064,1750512517111,-229.83988049,0.00020648,2]
[366849065,1750512517133,-539.82523729,0.00020648,2]
[366849066,1750512517154,-13557.65155698,0.00020649,2]
[366849067,1750512518764,29543.55909079,0.00023,30]
[366849072,1750512557158,-677.54292358,0.0002,7]
[366849076,1750512569085,-42.10449795,0.0002,7]
[366849077,1750512569109,-1401.0,0.00020442,2]
[366849078,1750512569132,-566.90235626,0.00020649,2]
[366849087,1750512632370,-1154.47198152,0.00020649,2]
[366849093,1750512632591,-1514.23864134,0.00020649,2]
[366849094,1750512632601,-172.68103878,0.00020897,2]
[366849095,1750512632611,-300.0,0.00020997,2]
[366849096,1750512632621,-300.0,0.00020997,2]
[366849097,1750512632631,-294.0,0.00020997,2]
[366849098,1750512632640,-1200.0,0.00020997,2]
[366849099,1750512632650,-10621.7583691,0.00020998,2]
[366849100,1750512632660,-700.0,0.00021,2]
[366849101,1750512632670,-172.68103877,0.00021698,2]
[366849102,1750512632679,-300.0,0.00021798,2]
[366849103,1750512632690,-200.797,0.00021799,2]
[366849104,1750512632699,-1000.0,0.00021799,2]
[366849105,1750512632709,-500.0,0.00021799,2]
[366849106,1750512632719,-802.02408721,0.00021799,2]
[366849107,1750512632729,-445.17617248,0.00021799,2]
[366849108,1750512632738,-802.02408721,0.00021799,2]
[366849109,1750512632748,-500.0,0.00021799,2]
[366849110,1750512632758,-802.02408721,0.00021799,2]
[366849111,1750512632767,-500.0,0.00021799,2]
[366849112,1750512632777,-802.02408721,0.00021799,2]
[366849113,1750512632788,-802.02408721,0.00021799,2]
[366849114,1750512632798,-802.02408721,0.00021799,2]
[366849115,1750512632808,-802.02408721,0.00021799,2]
[366849116,1750512632818,-500.0,0.00021799,2]
[366849117,1750512632828,-236.5237861,0.00021799,2]
[366849118,1750512632839,-802.02408721,0.00021799,2]
[366849119,1750512632849,-802.02408721,0.00021799,2]
[366849120,1750512632862,-802.02408721,0.00021799,2]
[366849121,1750512632875,-802.02408721,0.00021799,2]
[366849123,1750512632884,-802.02408721,0.00021799,2]
[366849125,1750512632894,-802.02408721,0.00021799,2]
[366849127,1750512632903,-802.02408721,0.00021799,2]
[366849129,1750512632913,-802.02408721,0.00021799,2]
[366849131,1750512632923,-958.77589027,0.00021799,2]
[366849133,1750512632934,-958.77589027,0.00021799,2]
[366849134,1750512632945,-958.77589027,0.00021799,2]
[366849135,1750512632955,-958.77589027,0.00021799,2]
[366849136,1750512632963,-958.77589027,0.00021799,2]
[366849137,1750512632972,-958.77589027,0.00021799,2]
[366849138,1750512632980,-958.77589027,0.00021799,2]
[366849139,1750512632989,-958.77589027,0.00021799,2]
[366849140,1750512632998,-958.77589027,0.00021799,2]
[366849141,1750512633007,-1084.86944674,0.00021799,2]
[366849142,1750512633016,-1084.86944674,0.00021799,2]
[366849143,1750512633026,-1084.86944674,0.00021799,2]
[366849144,1750512633036,-1084.86944674,0.00021799,2]
[366849145,1750512633045,-1084.86944674,0.00021799,2]
[366849146,1750512633056,-7399.15425087,0.000218,3]
[366849147,1750512633068,-3366.72093981,0.000218,3]
[366849149,1750512633077,-213.55395994,0.000218,3]
[366849151,1750512633087,-12549.17366507,0.000218,3]
[366849153,1750512633097,-160.0,0.000218,3]
[366849155,1750512633107,-846.23824438,0.000218,3]
[366849157,1750512633116,-1654.39261993,0.000219,6]
[366849158,1750512633126,-168.0,0.00021939,2]
[366849160,1750512633135,-4403.37791252,0.00022,2]
[366849161,1750512633145,-700.0,0.00022,3]
[366849162,1750512633155,-175.0,0.00022,2]
[366849163,1750512633166,-1000.0,0.00022036,2]
[366849164,1750512633176,-630.11130085,0.00022036,2]
[366849165,1750512633186,-1654.39261986,0.00022038,6]
[366849167,1750512633197,-233.7053134,0.00022052,2]
[366849168,1750512633207,-424.93363889,0.00022157,2]
[366849169,1750512633218,-160.0,0.00022157,2]
[366849170,1750512633228,-160.0,0.00022162,2]
[366849171,1750512633238,-12549.17366507,0.00022162,2]
[366849172,1750512633249,-160.0,0.00022162,2]
[366849173,1750512633259,-846.23824438,0.00022162,2]
[366849174,1750512633269,-160.0,0.00022162,2]
[366849175,1750512633278,-213.55395994,0.00022162,2]
[366849176,1750512633289,-160.0,0.00022162,2]
[366849177,1750512633299,-160.0,0.00022162,2]
[366849178,1750512633309,-160.0,0.00022162,2]
[366849179,1750512633320,-230.10342898,0.00022162,2]
[366849180,1750512633331,-836.41202323,0.00022162,2]
[366849181,1750512633341,-1654.39261986,0.00022176,6]
[366849182,1750512633351,-151.0,0.00022225,7]
[366849183,1750512633361,-151.0,0.00022225,7]
[366849184,1750512633371,-168.0,0.00022274,2]
[366849185,1750512633381,-1348.98034456,0.00022278,2]
[366849186,1750512633392,-1654.39261986,0.00022314,7]
[366849187,1750512633402,-168.0,0.0002238,2]
[366849189,1750512633412,-151.0,0.00022386,7]
[366849191,1750512633423,-151.0,0.00022452,7]
[366849193,1750512633434,-151.0,0.00022452,7]
[366849195,1750512633444,-168.0,0.00022475,2]
[366849197,1750512633456,-698.429594,0.0002251,4]
[366849198,1750512633466,-481.21229425,0.0002253,2]
[366849200,1750512633477,-1418.55103359,0.00022556,2]
[366849202,1750512633487,-213.55395994,0.0002259,7]
[366849203,1750512633497,-12549.17366507,0.0002259,7]
[366849205,1750512633512,-160.0,0.0002259,7]